bitfinex/quotes_BTCUSD_20241203
["timestamp","ask_amount","ask_price","bid_price","bid_amount"]
[1733193318305,0.20836,95988.0,95987.0,0.11500139]
[1733193318517,0.20836,95988.0,95987.0,0.12100139]
[1733193319192,0.20836,95988.0,95987.0,0.11800139]
[1733193319641,0.20836,95988.0,95987.0,0.12100139]
[1733193322363,0.20836,95988.0,95987.0,0.11500139]
[1733193322606,0.20836,95988.0,95987.0,0.11800139]
[1733193323090,0.20836,95988.0,95987.0,0.12100139]
[1733193323281,0.28706,95988.0,95987.0,0.12100139]
[1733193325093,0.20836,95988.0,95987.0,0.12100139]
[1733193325982,0.00230512,95991.0,95988.0,0.0811]
[1733193326202,0.0018459,95997.0,95988.0,0.0811]
[1733193326203,0.0018459,95997.0,95990.0,0.10284521]
[1733193326413,0.0018459,95997.0,95988.0,0.0811]
[1733193326414,0.208342,95996.0,95992.0,0.10284521]
[1733193326873,0.208342,95996.0,95993.0,0.00913197]
[1733193327057,0.208342,95996.0,95994.0,0.10284521]
[1733193327267,0.208342,95996.0,95995.0,0.00913079]
[1733193327496,0.208342,95996.0,95995.0,0.111976]
[1733193327716,0.20843955,95996.0,95995.0,0.111976]
[1733193329309,0.20843955,95996.0,95995.0,0.119976]
[1733193329733,0.20843955,95996.0,95995.0,0.123976]
[1733193330170,9.755e-05,95996.0,95995.0,0.123976]
[1733193330592,9.755e-05,95996.0,95995.0,0.248176]
[1733193331261,0.208327,96003.0,95995.0,0.244176]
[1733193331470,0.208327,96003.0,96001.0,0.10284521]
[1733193331924,0.208327,96003.0,96002.0,0.01006547]
[1733193332125,0.208327,96003.0,96002.0,0.11291068]
[1733193333885,0.0008643,96010.0,96009.0,0.208313]
[1733193334134,0.0009881,96021.0,96020.0,0.208289]
[1733193334387,0.0070838,96024.0,96020.0,0.59942321]
[1733193334609,0.0070838,96024.0,96022.0,0.10284521]
[1733193335558,0.0070838,96024.0,96022.0,0.11288394]
[1733193335953,0.0070838,96024.0,96022.0,0.12188394]
[1733193336174,0.0070838,96024.0,96023.0,0.208283]
[1733193336409,0.0017296,96029.0,96023.0,0.51941121]
[1733193336614,0.0017296,96029.0,96028.0,0.10284521]
[1733193336768,0.0017296,96029.0,96028.0,0.11288084]
[1733193337845,0.0019051,96029.0,96028.0,0.11788084]
[1733193338760,0.0019051,96029.0,96028.0,0.12688084]
[1733193341472,0.0019051,96029.0,96028.0,0.25518084]
[1733193342605,0.0019051,96029.0,96028.0,0.24118084]
[1733193342886,0.0019051,96029.0,96028.0,0.25018084]
[1733193343115,0.0019051,96029.0,96028.0,0.25518084]
[1733193343325,0.0019051,96029.0,96028.0,0.20258084]
[1733193343750,0.0019051,96029.0,96028.0,0.20858084]
[1733193344185,0.0019051,96029.0,96028.0,0.12788084]
[1733193344611,0.0019051,96029.0,96028.0,0.11888084]
[1733193345049,0.0019051,96029.0,96028.0,0.12788084]
[1733193345735,0.0019051,96029.0,96028.0,0.12188084]
[1733193346147,0.0019051,96029.0,96028.0,0.12688084]
[1733193346570,0.0019051,96029.0,96028.0,0.11184521]
[1733193346801,0.0019051,96029.0,96028.0,0.12173738]
[1733193347023,0.0019051,96029.0,96028.0,0.12773738]
[1733193350751,0.0019051,96029.0,96028.0,0.11784521]
[1733193350962,0.0019051,96029.0,96028.0,0.12756172]
[1733193351196,0.0019051,96029.0,96028.0,0.11784521]
[1733193353007,0.208268,96030.0,96028.0,0.12756172]
[1733193353008,0.20813487,96030.0,96028.0,0.12756172]
[1733193353235,0.20813487,96030.0,96029.0,0.10284521]
[1733193354586,0.20813487,96030.0,96029.0,0.11270129]
[1733193355017,0.20813487,96030.0,96029.0,0.12170129]
[1733193355933,0.20813487,96030.0,96029.0,0.11770129]
[1733193356397,0.20813487,96030.0,96029.0,0.12670129]
[1733193357068,0.20813487,96030.0,96029.0,0.12170129]
[1733193357562,0.20813487,96030.0,96029.0,0.12470129]
[1733193358016,0.20813487,96030.0,96029.0,0.11570129]
[1733193358480,0.20813487,96030.0,96029.0,0.12470129]
[1733193358672,0.20813487,96030.0,96029.0,0.11570129]
[1733193358899,0.20813487,96030.0,96029.0,0.11970129]
[1733193359114,0.20813487,96030.0,96029.0,0.11270129]
[1733193359331,0.18467326,96030.0,96029.0,0.11270129]
[1733193359548,0.18467326,96030.0,96029.0,0.11970129]
[1733193359765,0.18467326,96030.0,96029.0,0.12370129]
[1733193360182,0.18467326,96030.0,96029.0,0.11970129]
[1733193360543,0.18467326,96030.0,96029.0,0.12370129]
[1733193360768,0.18467326,96030.0,96029.0,0.11670129]
[1733193360943,0.18640246,96030.0,96029.0,0.12370129]
[1733193361620,0.18870647,96030.0,96029.0,0.12370129]
[1733193361826,0.26480647,96030.0,96029.0,0.11670129]
[1733193362034,0.26250246,96030.0,96029.0,0.11284521]
[1733193362479,0.30165787,96030.0,96029.0,0.004]
[1733193362696,0.1243,96029.0,96028.0,5e-07]
[1733193362896,0.12660452,96029.0,96028.0,5e-07]
[1733193363120,0.20950968,96029.0,96028.0,5e-07]
[1733193363540,0.12660452,96029.0,96028.0,5e-07]
[1733193368249,0.12660452,96029.0,96028.0,0.10284571]
[1733193369679,0.12660452,96029.0,96028.0,5e-07]
[1733193373812,0.12660452,96029.0,96028.0,0.10371031]
[1733193374071,0.1243,96029.0,96028.0,0.10371031]
[1733193376874,0.00230412,96029.0,96028.0,0.10371031]
[1733193378397,0.00230412,96029.0,96028.0,0.10471031]
[1733193379049,0.00230412,96029.0,96028.0,0.10671031]
[1733193379271,0.00230412,96029.0,96028.0,0.10571031]
[1733193380416,0.06282728,96029.0,96028.0,0.10571031]
[1733193380709,0.14422728,96029.0,96028.0,0.10571031]
[1733193381137,0.08370412,96029.0,96028.0,0.10571031]
[1733193381356,0.1277,96029.0,96028.0,0.0008651]
[1733193381570,0.13000447,96029.0,96028.0,0.0008651]
[1733193383697,0.08370447,96029.0,96028.0,0.10371031]
[1733193383907,0.00230447,96029.0,96028.0,0.10371031]
[1733193385234,0.00403367,96029.0,96028.0,0.10371031]
[1733193387191,0.00403367,96029.0,96028.0,0.10471031]
[1733193391164,0.00403367,96029.0,96028.0,0.10371031]
[1733193392464,0.13443367,96029.0,96028.0,0.10371031]
[1733193393552,0.00403367,96029.0,96028.0,0.10371031]
[1733193397957,0.00403367,96029.0,96028.0,0.10471031]
[1733193400520,0.0017292,96029.0,96028.0,0.10471031]
[1733193401211,0.0017292,96029.0,96028.0,0.10371031]
[1733193401456,0.0017292,96029.0,96028.0,0.10671031]
[1733193402448,0.0017292,96029.0,96028.0,0.18751031]
[1733193402685,0.18640246,96030.0,96028.0,0.18751031]
[1733193402904,0.18640246,96030.0,96029.0,0.10284521]
[1733193403124,0.18640246,96030.0,96029.0,0.11446945]
[1733193404540,0.18640246,96030.0,96029.0,0.12146945]
[1733193406544,0.18640246,96030.0,96029.0,0.12546945]
[1733193408264,0.18640246,96030.0,96029.0,0.12146945]
[1733193409118,0.0017292,96030.0,96029.0,0.16826945]
[1733193409583,0.0017292,96030.0,96029.0,0.24276945]
[1733193409811,0.0017292,96030.0,96029.0,0.28404845]
[1733193410065,0.0017292,96030.0,96029.0,0.27504845]
[1733193410272,0.0017292,96030.0,96029.0,0.28004845]
[1733193410491,0.02005217,96037.0,96029.0,0.28904845]
[1733193410715,0.02005217,96037.0,96036.0,0.10284521]
[1733193410944,0.02005217,96037.0,96036.0,0.11574418]
[1733193412750,0.02005217,96037.0,96036.0,0.12274418]
[1733193413994,0.02005217,96037.0,96036.0,0.12674418]
[1733193419915,0.0008649,96053.0,96038.0,0.1291]
[1733193420128,0.0008649,96053.0,96040.0,0.10284521]
[1733193420562,0.0008649,96053.0,96040.0,0.11573089]
[1733193420774,0.208225,96050.0,96040.0,0.11573089]
[1733193420986,0.0008649,96053.0,96040.0,0.11573089]
[1733193421712,0.208231,96048.0,96040.0,0.11573089]
[1733193421922,0.2090829,96053.0,96040.0,0.11573089]
[1733193422135,0.2090829,96053.0,96040.0,0.11773089]
[1733193422343,0.4173019,96053.0,96040.0,0.11773089]
[1733193423060,0.4173019,96053.0,96040.0,0.12273089]
[1733193423516,0.2090829,96053.0,96040.0,0.12273089]
[1733193424372,0.208227,96049.0,96040.0,0.12273089]
[1733193425335,0.208237,96045.0,96040.0,0.12273089]
[1733193425789,0.208227,96049.0,96040.0,0.12273089]
[1733193426006,0.208236,96045.0,96040.0,0.12273089]
[1733193426240,0.208227,96049.0,96040.0,0.12273089]
[1733193428779,0.208236,96045.0,96040.0,0.12273089]
[1733193430628,0.208239,96044.0,96040.0,0.12273089]
[1733193430856,0.254439,96044.0,96040.0,0.12273089]
[1733193434835,0.20824,96043.0,96040.0,0.12273089]
[1733193435047,0.20824,96043.0,96042.0,0.10284521]
[1733193435254,0.0008649,96053.0,96042.0,0.23284521]
[1733193435464,0.208222,96052.0,96046.0,0.10284521]
[1733193435907,0.0008649,96053.0,96046.0,0.11422689]
[1733193436549,0.2090839,96053.0,96046.0,0.11422689]
[1733193437445,0.0008649,96053.0,96046.0,0.12022689]
[1733193437880,0.0008649,96053.0,96047.0,0.208231]
[1733193438111,0.0008649,96053.0,96052.0,0.10284521]
[1733193438351,0.0008649,96053.0,96052.0,0.43572317]
[1733193438616,0.0008649,96053.0,96052.0,0.81795466]
[1733193438872,0.0143783,96055.0,96054.0,0.2]
[1733193439113,0.0143783,96055.0,96054.0,0.3350767]
[1733193439356,0.0143783,96055.0,96054.0,0.34644591]
[1733193439874,0.0143783,96055.0,96054.0,0.14644591]
[1733193440394,0.0143783,96055.0,96054.0,0.15544591]
[1733193440909,0.0143783,96055.0,96054.0,0.35544591]
[1733193442506,0.0143783,96055.0,96054.0,0.50544591]
[1733193442970,0.0143783,96055.0,96054.0,0.63884591]
[1733193446657,0.0143783,96055.0,96054.0,0.83884591]
[1733193448727,0.0017296,96072.0,96064.0,0.2]
[1733193448902,0.00125235,96072.0,96071.0,0.10284521]
[1733193449285,0.00125235,96072.0,96071.0,0.11418251]
[1733193449965,0.00058536,96072.0,96071.0,0.11418251]
[1733193450570,0.00058536,96072.0,96071.0,0.12318251]
[1733193450801,0.00058536,96072.0,96071.0,0.24868251]
[1733193451895,0.00058536,96072.0,96071.0,0.25568251]
[1733193452405,0.00058536,96072.0,96071.0,0.80568251]
[1733193452620,0.00058536,96072.0,96071.0,0.83782728]
[1733193452846,0.0009904,96083.0,96071.0,0.83782728]
[1733193453094,0.00104889,96083.0,96082.0,0.10284521]
[1733193453325,0.00104889,96083.0,96082.0,0.31100021]
[1733193453555,5.849e-05,96083.0,96082.0,0.32232793]
[1733193454288,5.849e-05,96083.0,96082.0,0.11417293]
[1733193455866,5.849e-05,96083.0,96082.0,0.12217293]
[1733193456386,5.849e-05,96083.0,96082.0,0.12617293]
[1733193458328,5.849e-05,96083.0,96082.0,0.11417293]
[1733193458479,5.849e-05,96083.0,96082.0,0.12617293]
[1733193458687,5.849e-05,96083.0,96082.0,0.11817293]
[1733193458840,5.849e-05,96083.0,96082.0,0.11417293]
[1733193459214,5.849e-05,96083.0,96082.0,0.12317293]
[1733193459418,5.849e-05,96083.0,96082.0,0.13217293]
[1733193464828,0.08911528,96089.0,96082.0,0.13217293]
[1733193465010,0.08911528,96089.0,96088.0,0.10284521]
[1733193465442,0.08911528,96089.0,96088.0,0.11415999]
[1733193465650,0.08911528,96089.0,96088.0,0.32230199]
[1733193466290,0.08911528,96089.0,96088.0,0.33130199]
[1733193466504,0.08911528,96089.0,96088.0,0.12315999]
[1733193467818,0.08911528,96089.0,96088.0,0.13015999]
[1733193469923,0.09084368,96089.0,96088.0,0.33015999]
[1733193470161,0.04654459,96089.0,96088.0,0.68015999]
[1733193470404,0.0017896,96092.0,96091.0,0.4]
[1733193470619,0.0017896,96092.0,96091.0,0.68496336]
[1733193470837,0.0009832,96117.0,96112.0,0.548]
[1733193471064,0.0009832,96117.0,96116.0,0.30284521]
[1733193471252,0.0002779,96124.0,96119.0,0.208075]
[1733193471552,0.0002779,96124.0,96119.0,0.3234497]
[1733193471813,0.0791,96129.0,96119.0,0.3234497]
[1733193472249,0.00190498,96120.0,96119.0,0.3234497]
[1733193472961,0.00190498,96120.0,96119.0,0.3324497]
[1733193474266,0.00190498,96120.0,96119.0,0.3394497]
[1733193474470,0.00190498,96120.0,96119.0,0.5394497]
[1733193476533,0.00190498,96120.0,96119.0,0.3313747]
[1733193478995,0.00190498,96120.0,96119.0,0.1313747]
[1733193479125,0.00190498,96120.0,96119.0,0.1153747]
[1733193479319,0.00190498,96120.0,96119.0,0.1243747]
[1733193480155,0.2097902,96126.0,96119.0,0.1243747]
[1733193480616,0.20986929,96126.0,96125.0,0.10284521]
[1733193481037,0.20986929,96126.0,96125.0,0.11537058]
[1733193481038,0.32875764,96126.0,96125.0,0.11537058]
[1733193481271,0.12677909,96126.0,96125.0,0.11537058]
[1733193482109,0.12850729,96126.0,96125.0,0.11537058]
[1733193482313,0.12850729,96126.0,96125.0,0.12737058]
[1733193482728,0.12850729,96126.0,96125.0,0.11937058]
[1733193482928,0.12850729,96126.0,96125.0,0.12837058]
[1733193483381,0.1188448,96126.0,96125.0,0.12837058]
[1733193483793,0.1188448,96126.0,96125.0,0.12437058]
[1733193484009,0.0792282,96126.0,96125.0,0.12437058]
[1733193484231,0.0017282,96126.0,96125.0,0.13037058]
[1733193485555,0.0017282,96126.0,96125.0,0.13807367]
[1733193486024,7.173e-05,96126.0,96125.0,0.13807367]
[1733193490689,7.173e-05,96126.0,96125.0,0.13807801]
[1733193494255,7.173e-05,96126.0,96125.0,0.13894802]
[1733193496017,0.07657173,96126.0,96125.0,0.13894802]
[1733193497504,0.07657173,96126.0,96125.0,0.13123428]
[1733193499299,0.05313469,96126.0,96125.0,0.13123428]
[1733193505989,0.05486449,96126.0,96125.0,0.13123428]
[1733193508276,0.05490449,96126.0,96125.0,0.13123428]
[1733193513937,0.0017698,96126.0,96125.0,0.13123428]
[1733193515004,0.208045,96133.0,96125.0,0.13123428]
[1733193515192,0.208045,96133.0,96132.0,0.10284521]
[1733193515610,0.208045,96133.0,96132.0,0.11612801]
[1733193517285,0.001729,96134.0,96132.0,0.11612801]
[1733193517499,0.001729,96134.0,96133.0,0.10284521]
[1733193518762,0.001729,96134.0,96133.0,0.11832305]
[1733193518946,0.001729,96134.0,96133.0,0.13132305]
[1733193519184,0.001729,96134.0,96133.0,0.14460023]
[1733193521838,0.001729,96134.0,96133.0,0.12912239]
[1733193522066,0.001729,96134.0,96133.0,0.14459669]
[1733193522689,0.001729,96134.0,96133.0,0.47739669]
[1733193522902,0.001729,96134.0,96133.0,0.50961869]
[1733193523336,0.001729,96138.0,96137.0,0.208036]
[1733193523564,0.001729,96138.0,96137.0,0.35857751]
[1733193523766,0.001729,96138.0,96137.0,0.3718519]
[1733193524864,0.001729,96138.0,96137.0,0.1638159]
[1733193525076,0.001729,96138.0,96137.0,0.1728159]
[1733193527763,0.001729,96138.0,96137.0,0.1495939]
[1733193528806,0.001729,96138.0,96137.0,0.14955358]
[1733193529575,0.001729,96138.0,96137.0,0.15055338]
[1733193532153,0.00137298,96138.0,96137.0,0.1351194]
[1733193532403,0.00137298,96138.0,96137.0,0.15055164]
[1733193535748,0.00137298,96138.0,96137.0,0.15055252]
[1733193537927,0.13257298,96138.0,96137.0,0.15055252]
[1733193538132,0.00137298,96138.0,96137.0,0.35055252]
[1733193538334,0.207999,96154.0,96138.0,0.2]
[1733193538566,0.2241153,96150.0,96149.0,0.10284521]
[1733193538792,0.0161073,96150.0,96149.0,0.11827833]
[1733193539844,0.0161073,96150.0,96149.0,0.12727833]
[1733193540099,0.0161073,96150.0,96149.0,0.13327833]
[1733193540493,0.0161073,96150.0,96149.0,0.12727833]
[1733193540927,0.0161073,96150.0,96149.0,0.11827833]
[1733193541336,0.0161073,96150.0,96149.0,0.12727833]
[1733193541547,0.0161073,96150.0,96149.0,0.11827833]
[1733193541958,0.0161073,96150.0,96149.0,0.12727833]
[1733193542187,0.0161073,96150.0,96149.0,0.34428833]
[1733193542389,0.0161073,96150.0,96149.0,0.13627833]
[1733193542592,0.0161073,96150.0,96149.0,0.12727833]
[1733193543088,0.0161073,96150.0,96149.0,0.13527833]
[1733193543924,0.01489967,96150.0,96149.0,0.13527833]
[1733193544963,0.01489967,96150.0,96149.0,0.13527378]
[1733193546439,0.01489967,96150.0,96149.0,0.14851886]
[1733193548184,0.01489967,96150.0,96149.0,0.13951886]
[1733193548418,0.01489967,96150.0,96149.0,0.13151886]
[1733193548599,0.01489967,96150.0,96149.0,0.8462337]
[1733193548912,0.01489967,96150.0,96149.0,0.8552337]
[1733193549068,0.01489967,96150.0,96149.0,0.83980513]
[1733193549302,0.01489967,96150.0,96149.0,0.83180513]
[1733193549836,0.01489967,96150.0,96149.0,0.8472312]
[1733193550034,0.0017288,96152.0,96151.0,0.4]
[1733193550268,0.0017288,96152.0,96151.0,0.68150877]
[1733193550681,0.0017288,96152.0,96151.0,0.48150877]
[1733193550882,0.0017288,96152.0,96151.0,0.68150877]
[1733193551940,0.0017288,96152.0,96151.0,0.69950877]
[1733193553492,0.207976,96165.0,96155.0,0.12470684]
[1733193553697,0.207976,96165.0,96164.0,0.10284521]
[1733193553934,0.207976,96165.0,96164.0,0.11827128]
[1733193554110,0.207976,96165.0,96164.0,0.13148811]
[1733193554335,0.2096968,96169.0,96164.0,0.13148811]
[1733193554454,0.2096968,96169.0,96168.0,0.10284521]
[1733193554653,0.21028161,96169.0,96168.0,0.11827128]
[1733193555301,0.21028161,96169.0,96168.0,0.13148502]
[1733193555667,0.21028161,96169.0,96168.0,0.11605895]
[1733193555863,0.21028161,96169.0,96168.0,0.12205895]
[1733193556259,0.21028161,96169.0,96168.0,0.13105895]
[1733193556908,0.21028161,96169.0,96168.0,0.11784521]
[1733193560482,0.00231361,96169.0,96168.0,0.11784521]
[1733193561075,0.00231361,96169.0,96168.0,0.12505895]
[1733193561403,0.00231361,96169.0,96168.0,0.13439696]
[1733193561817,0.00231361,96169.0,96168.0,0.14339696]
[1733193564535,0.00231361,96169.0,96168.0,0.14339955]
[1733193565904,0.00231361,96169.0,96168.0,0.72549842]
[1733193566108,0.00231361,96169.0,96168.0,0.85269842]
[1733193566528,0.00231361,96169.0,96168.0,0.84369842]
[1733193567972,0.04345421,96170.0,96169.0,0.757967]
[1733193568186,0.01109971,96170.0,96169.0,0.90623198]
[1733193568538,0.20799191,96200.0,96185.0,0.207932]
[1733193568658,0.20791,96196.0,96185.0,0.11518581]
[1733193569330,0.207919,96192.0,96185.0,0.11518581]
[1733193569732,0.20791,96196.0,96185.0,0.11518581]
[1733193570109,0.207918,96192.0,96185.0,0.11518581]
[1733193570560,0.207927,96188.0,96185.0,0.11518581]
[1733193570986,0.0805284,96186.0,96185.0,0.11518581]
[1733193571403,0.0805284,96186.0,96185.0,0.12418581]
[1733193571837,0.0805284,96186.0,96185.0,0.13218581]
[1733193572070,0.0805284,96186.0,96185.0,0.12318581]
[1733193572280,0.0805284,96186.0,96185.0,0.128367]
[1733193572486,0.0805284,96186.0,96185.0,0.137367]
[1733193572691,0.0805284,96186.0,96185.0,0.136367]
[1733193573111,0.0805284,96186.0,96185.0,0.137367]
[1733193574143,0.1269284,96186.0,96185.0,0.137367]
[1733193574574,0.1269284,96186.0,96185.0,0.145367]
[1733193574990,0.0017284,96186.0,96185.0,0.145367]
[1733193575202,0.0830284,96186.0,96185.0,0.145367]
[1733193575412,0.0830284,96186.0,96185.0,0.137367]
[1733193575617,0.0830284,96186.0,96185.0,0.144367]
[1733193575884,0.0830284,96186.0,96185.0,0.135367]
[1733193576092,0.0830284,96186.0,96185.0,0.137367]
[1733193576505,0.0830284,96186.0,96185.0,0.145367]
[1733193576926,0.0830284,96186.0,96185.0,0.136367]
[1733193577759,0.0017284,96186.0,96185.0,0.136367]
[1733193578421,0.0017284,96186.0,96185.0,0.145367]
[1733193579940,0.0017284,96186.0,96185.0,0.625267]
[1733193580351,8.991e-05,96200.0,96199.0,0.2]
[1733193580562,8.991e-05,96200.0,96199.0,0.45384431]
[1733193580775,8.991e-05,96200.0,96199.0,0.59277553]
[1733193581584,0.00026511,96200.0,96199.0,0.59277553]
[1733193581951,0.00026511,96200.0,96199.0,0.60177553]
[1733193582525,0.00026511,96200.0,96199.0,0.61593375]
[1733193582732,0.00026511,96200.0,96199.0,0.62493375]
[1733193583572,0.03801583,96219.0,96207.0,0.407885]
[1733193583753,0.03801583,96219.0,96207.0,0.52307081]
[1733193584615,0.03801583,96219.0,96207.0,0.53619841]
[1733193584802,0.03801583,96219.0,96207.0,0.89519841]
[1733193585361,0.03801583,96219.0,96207.0,0.90419841]
[1733193585563,0.03801583,96219.0,96207.0,0.88619841]
[1733193585793,0.03801583,96219.0,96207.0,0.89519841]
[1733193586029,0.03801583,96219.0,96207.0,0.90419841]
[1733193589979,0.03801583,96219.0,96207.0,0.70419841]
[1733193591423,0.03801583,96219.0,96213.0,0.20787]
[1733193591643,0.03801583,96219.0,96216.0,0.10382771]
[1733193591847,0.03703363,96219.0,96216.0,0.12928896]
[1733193592479,0.03703363,96219.0,96216.0,0.33715396]
[1733193592704,0.03703363,96219.0,96216.0,0.12928896]
[1733193592907,0.03703363,96219.0,96216.0,0.13828896]
[1733193594137,0.03703363,96219.0,96216.0,0.14728896]
[1733193594557,0.03703363,96219.0,96216.0,0.13494836]
[1733193594822,0.03703363,96219.0,96216.0,0.14722692]
[1733193600721,0.00179409,96218.0,96217.0,0.757863]
[1733193600928,0.00179409,96218.0,96217.0,0.90650821]
[1733193601192,0.00631523,96219.0,96218.0,0.55]
[1733193601379,0.00631523,96219.0,96218.0,0.69705442]
[1733193602746,0.00631523,96219.0,96218.0,0.70605442]
[1733193603688,0.00631523,96219.0,96218.0,0.71505442]
[1733193604189,0.00631523,96219.0,96218.0,0.71504721]
[1733193604375,0.2888,96245.0,96218.0,0.71504721]
[1733193604376,0.080997,96245.0,96234.0,0.94599117]
[1733193604640,0.080997,96245.0,96234.0,1.06208495]
[1733193604854,0.080997,96245.0,96234.0,0.86733458]
[1733193605032,0.080997,96245.0,96234.0,0.66733458]
[1733193605706,0.00190496,96235.0,96234.0,0.66733458]
[1733193605934,0.00190496,96235.0,96234.0,0.67633458]
[1733193606675,0.207805,96244.0,96234.0,0.27182183]
[1733193606914,0.080997,96245.0,96243.0,0.10284521]
[1733193607136,0.080997,96245.0,96244.0,0.11510748]
[1733193607404,0.08,96245.0,96244.0,0.11510748]
[1733193607663,0.08,96245.0,96244.0,0.12816815]
[1733193609366,0.08,96245.0,96244.0,0.13716815]
[1733193609860,0.08,96245.0,96244.0,0.14616815]
[1733193612469,0.12926281,96245.0,96244.0,0.14616815]
[1733193614155,0.12926281,96245.0,96244.0,0.12816815]
[1733193614416,0.12926281,96245.0,96244.0,0.13716815]
[1733193615594,0.12926281,96245.0,96244.0,0.13516815]
[1733193616086,0.12926281,96245.0,96244.0,0.13716815]
[1733193616336,0.12926281,96245.0,96244.0,0.14116815]
[1733193617677,0.12926281,96245.0,96244.0,0.14884139]
[1733193617912,0.12926281,96245.0,96244.0,0.12890358]
[1733193618153,0.12926281,96245.0,96244.0,0.14885385]
[1733193620254,0.12926281,96245.0,96244.0,0.03373155]
[1733193620431,0.12926281,96245.0,96244.0,0.012251]
[1733193620662,0.12941658,96245.0,96244.0,5.5e-07]
[1733193620875,0.338024,96235.0,96234.0,0.00017516]
[1733193623087,0.338024,96235.0,96234.0,0.00117516]
[1733193624168,0.338024,96235.0,96234.0,0.00417516]
[1733193625007,0.338888,96235.0,96234.0,0.00417516]
[1733193627027,0.38005479,96235.0,96234.0,0.00417516]
[1733193628409,0.338888,96235.0,96234.0,0.00417516]
[1733193630774,0.33906468,96235.0,96234.0,0.00417516]
[1733193631218,0.738888,96235.0,96234.0,1.6e-07]
[1733193631425,0.73906468,96235.0,96234.0,1.6e-07]
[1733193631687,0.53906468,96235.0,96234.0,1.6e-07]
[1733193631930,0.3252,96234.0,96218.0,0.001728]
[1733193632141,0.207859,96219.0,96218.0,0.001728]
[1733193632355,0.333059,96219.0,96218.0,0.001728]
[1733193633495,0.333059,96219.0,96218.0,0.007728]
[1733193634333,0.308059,96219.0,96218.0,0.007728]
[1733193635616,0.308059,96219.0,96218.0,0.010728]
[1733193636071,0.3804343,96219.0,96218.0,0.11357321]
[1733193636320,0.308059,96219.0,96218.0,0.11357321]
[1733193641021,0.1252,96219.0,96218.0,0.11357321]
[1733193641232,0.00103907,96235.0,96218.0,0.11357321]
[1733193641233,0.0008646,96283.0,96238.0,0.124]
[1733193641448,0.0008646,96283.0,96266.0,0.207757]
[1733193641659,0.00027781,96278.0,96277.0,0.35]
[1733193641877,0.15437979,96290.0,96287.0,0.2]
[1733193642080,0.15437979,96290.0,96289.0,0.557708]
[1733193642505,0.02627979,96290.0,96289.0,0.557708]
[1733193642711,0.00027776,96301.0,96300.0,0.757684]
[1733193642921,0.00027776,96324.0,96313.0,0.207656]
[1733193643137,0.00027776,96324.0,96313.0,0.31050121]
[1733193643344,0.00027776,96324.0,96313.0,0.86108602]
[1733193643963,0.00097778,96332.0,96313.0,0.86108602]
[1733193644996,0.00097778,96332.0,96313.0,0.87405562]
[1733193645411,0.0018642,96314.0,96313.0,0.89105562]
[1733193645617,0.00097778,96332.0,96330.0,0.557619]
[1733193645857,0.00097778,96332.0,96330.0,0.66046421]
[1733193646060,0.00097778,96332.0,96330.0,0.86046421]
[1733193646276,0.09912127,96350.0,96349.0,0.55]
[1733193646485,0.09912127,96350.0,96349.0,0.65382641]
[1733193646688,0.09813937,96350.0,96349.0,0.65382641]
[1733193646944,0.00027767,96365.0,96364.0,0.207546]
[1733193647191,0.000993,96369.0,96368.0,0.607537]
[1733193647413,0.00027766,96384.0,96368.0,0.607537]
[1733193647414,0.00027766,96384.0,96368.0,0.25284521]
[1733193647618,0.00027766,96384.0,96370.0,0.10284521]
[1733193648269,0.2075,96386.0,96370.0,0.10284521]
[1733193648496,0.00229555,96385.0,96370.0,0.10284521]
[1733193648702,0.00229555,96385.0,96370.0,0.11562032]
[1733193648916,0.2084757,96392.0,96370.0,0.11562032]
[1733193648917,0.00229555,96390.0,96370.0,0.11562032]
[1733193649557,0.207507,96383.0,96370.0,0.12262032]
[1733193649772,0.00133642,96371.0,96370.0,0.12262032]
[1733193649980,0.00133642,96371.0,96370.0,0.11847643]
[1733193650196,0.00133642,96371.0,96370.0,0.13327385]
[1733193650404,0.00133642,96371.0,96370.0,0.12427385]
[1733193650854,0.0009897,96392.0,96390.0,0.2]
[1733193651107,0.0009897,96392.0,96390.0,0.65284521]
[1733193651343,0.00078036,96412.0,96402.0,0.557464]
[1733193651555,0.00078036,96412.0,96402.0,0.66130541]
[1733193651764,0.00078036,96412.0,96402.0,0.25668081]
[1733193652039,0.00078036,96412.0,96402.0,0.45668081]
[1733193652257,0.0005027,96412.0,96402.0,0.46659119]
[1733193652501,0.0005027,96412.0,96402.0,0.48459119]
[1733193652727,0.0005027,96412.0,96402.0,0.485176]
[1733193652936,0.0005027,96412.0,96402.0,0.476176]
[1733193653145,0.0005027,96412.0,96402.0,0.126176]
[1733193653566,0.0005027,96412.0,96402.0,0.135176]
[1733193654625,0.0005027,96412.0,96402.0,0.126176]
[1733193654865,0.0005027,96412.0,96402.0,0.135176]
[1733193655264,0.0005027,96412.0,96402.0,0.126176]
[1733193655688,0.0005027,96412.0,96402.0,0.135176]
[1733193656150,0.0005027,96412.0,96402.0,0.144176]
[1733193656360,0.0005027,96412.0,96402.0,0.35164]
[1733193656773,0.0005027,96412.0,96402.0,0.33364]
[1733193657638,0.0005027,96412.0,96402.0,0.32464]
[1733193658057,0.2307881,96411.0,96402.0,0.111676]
[1733193658268,0.207487,96410.0,96402.0,0.120676]
[1733193658497,0.207487,96410.0,96402.0,0.10183828]
[1733193658701,0.20746,96405.0,96402.0,0.10183828]
[1733193658907,4e-05,96410.0,96402.0,0.11083828]
[1733193659119,4e-05,96410.0,96402.0,0.31830228]
[1733193660171,4e-05,96410.0,96402.0,0.11083828]
[1733193660412,0.207488,96410.0,96402.0,0.11083828]
[1733193661039,0.207458,96405.0,96402.0,0.11983828]
[1733193661261,0.00136465,96403.0,96402.0,0.11983828]
[1733193661473,0.00136465,96403.0,96402.0,0.10183828]
[1733193661681,0.00136465,96403.0,96402.0,0.11083828]
[1733193662783,0.00136465,96403.0,96402.0,0.11983828]
[1733193664324,0.00136465,96403.0,96402.0,0.11083828]
[1733193664558,0.00136465,96403.0,96402.0,0.11983828]
[1733193665237,0.00136465,96403.0,96402.0,0.11083828]
[1733193665453,0.00136465,96403.0,96402.0,0.10183828]
[1733193665669,0.00136465,96403.0,96402.0,0.10983828]
[1733193665880,0.00136465,96403.0,96402.0,0.10692622]
[1733193666099,0.0036599,96403.0,96402.0,0.09792622]
[1733193666323,0.0036599,96403.0,96402.0,0.09693002]
[1733193666530,0.0036599,96403.0,96402.0,0.10593002]
[1733193667177,0.0036599,96403.0,96402.0,0.08893002]
[1733193667385,0.0036599,96403.0,96402.0,0.09493002]
[1733193668013,0.0036599,96403.0,96402.0,0.08893002]
[1733193668456,0.0036599,96403.0,96402.0,0.09293002]
[1733193668678,0.0036599,96403.0,96402.0,0.10093002]
[1733193668879,0.0036599,96403.0,96402.0,0.09293002]
[1733193669095,0.0036599,96403.0,96402.0,0.09693002]
[1733193669514,0.0036599,96403.0,96402.0,0.08893002]
[1733193669722,0.0036599,96403.0,96402.0,0.09093002]